Workbook

Sheet Protection Occupations
A2: Measurement Date: 6/30/2015
A3: Membership Goup: Protection Occupations
H4: DEFERRED OUTFLOWS OF RESOURCES | M4: DEFERRED INFLOWS OF RESOURCES
H5: (Excluding Employer Specific Amounts)* | M5: (Excluding Employer Specific Amounts) *
A6: Employer ID # | B6: Employer Name | C6: 2020 Actual Employer Contributions | D6: Employer Allocation Percentage ** | E6: Net Pension Liability (NPL)/ (Asset) | F6: Change in NPL due to 1% Decrease in the Actuarial Assumed Investment Return (6.00 %) | G6: Change in NPL due to 1% Increase in the Actuarial Assumed Investment Return (8.00%) | H6: Differences Between Expected and Actual Experience | I6: Changes of Assumptions | J6: Difference Between Projected and Actual Investment Earnings on Pension Plan Investments | K6: Total Deferred Outflows of Resources | M6: Differences Between Expected and Actual Experience | N6: Changes of Assumptions | O6: Difference Between Projected and Actual Investment Earnings on Pension Plan Investments | P6: Total Deferred Inflows of Resources | Q6: Total Proportionate Share of Allocable Plan Pension Expense
A7: EMPLOYER ID # | B7: EMPLOYER_NAME | C7: 37896147.92 | D7: 1 | E7: 32683892 | F7: 266951890 | G7: -163470502 | H7: 4580038 | I7: 14086252 | J7: 54886375 | K7: =SUM(H7:J7) -> 73552665 | M7: 553254 | N7: 684252 | O7: 31262684 | P7: =SUM(M7:O7) -> 32500190 | Q7: 48893325
A8: 00216 | B8: STATE - DEPT OF HUMAN SERVICES/CCUSO | C8: 511250.4 | D8: =+C8/$C$7 -> 0.01349082765 | E8: =ROUND(D8*$E$7,0) -> 440933 | F8: =ROUND(D8*$F$7,0) -> 3601402 | G8: =ROUND(D8*$G$7,0)+1 -> -2205351 | H8: =ROUND(D8*$H$7,0)-1 -> 61788 | I8: =ROUND(D8*$I$7,0) -> 190035 | J8: =ROUND(D8*$J$7,0) -> 740463 | K8: =ROUND(SUM(H8:J8),0) -> 992286 | M8: =ROUND(D8*$M$7,0) -> 7464 | N8: =ROUND(D8*$N$7,0) -> 9231 | O8: =ROUND(D8*$O$7,0) -> 421759 | P8: =ROUND(SUM(M8:O8),0) -> 438454 | Q8: =ROUND(D8*$Q$7,0)-1 -> 659610
A9: 00221 | B9: MAR-MAC UNIFIED POLICE DISTRICT | C9: 14269.67 | D9: =+C9/$C$7 -> 0.0003765467147 | E9: =ROUND(D9*$E$7,0) -> 12307 | F9: =ROUND(D9*$F$7,0) -> 100520 | G9: =ROUND(D9*$G$7,0) -> -61554 | H9: =ROUND(D9*$H$7,0) -> 1725 | I9: =ROUND(D9*$I$7,0) -> 5304 | J9: =ROUND(D9*$J$7,0) -> 20667 | K9: =ROUND(SUM(H9:J9),0) -> 27696 | M9: =ROUND(D9*$M$7,0) -> 208 | N9: =ROUND(D9*$N$7,0) -> 258 | O9: =ROUND(D9*$O$7,0) -> 11772 | P9: =ROUND(SUM(M9:O9),0) -> 12238 | Q9: =ROUND(D9*$Q$7,0) -> 18411
A10: 00313 | B10: POLK COUNTY RANGERS | C10: 1698235.71 | D10: 0.04481288477 | E10: =ROUND(D10*$E$7,0)+1 -> 1464660 | F10: 11962884 | G10: =ROUND(D10*$G$7,0)+1 -> -7325584 | H10: =ROUND(D10*$H$7,0)-1 -> 205244 | I10: =ROUND(D10*$I$7,0)+1 -> 631247 | J10: 2459617 | K10: 3296108 | M10: =ROUND(D10*$M$7,0)+1 -> 24794 | N10: =ROUND(D10*$N$7,0)+1 -> 30664 | O10: =ROUND(D10*$O$7,0)-1 -> 1400970 | P10: 1456428 | Q10: =ROUND(D10*$Q$7,0)-1 -> 2191050
A11: 00331 | B11: BATTLE CREEK COMMUNITY AMBULANCE | C11: 3693.06 | D11: 9.74521212e-05 | E11: 3185 | F11: 26015 | G11: -15931 | H11: 446 | I11: 1373 | J11: 5349 | K11: 7168 | M11: 54 | N11: 67 | O11: 3047 | P11: 3168 | Q11: 4765
A12: 00348 | B12: STATE - PUB DEF - PROTECTION OCCUPATIONS | C12: 137804.56 | D12: 0.003636373815 | E12: 118851 | F12: 970737 | G12: -594440 | H12: 16655 | I12: 51223 | J12: 199587 | K12: 267465 | M12: 2012 | N12: 2488 | O12: 113683 | P12: 118183 | Q12: 177794
A13: 00410 | B13: DELAWARE TOWNSHIP FIRE DEPT - POLK CO | C13: 2810.35 | D13: 7.415925244e-05 | E13: 2424 | F13: 19797 | G13: -12123 | H13: 340 | I13: 1045 | J13: 4070 | K13: 5455 | M13: 41 | N13: 51 | O13: 2318 | P13: 2410 | Q13: 3626
A14: 01201 | B14: ADAIR COUNTY | C14: 45107.01 | D14: 0.001190279553 | E14: 38903 | F14: 317747 | G14: -194576 | H14: 5452 | I14: 16767 | J14: 65330 | K14: 87549 | M14: 659 | N14: 814 | O14: 37211 | P14: 38684 | Q14: 58197
A15: 01204 | B15: ADAIR COUNTY HEALTH SYSTEM | C15: 27632.44 | D15: 0.0007291622372 | E15: 23832 | F15: 194651 | G15: -119197 | H15: 3340 | I15: 10271 | J15: 40021 | K15: 53632 | M15: 403 | N15: 499 | O15: 22796 | P15: 23698 | Q15: 35651
A16: 01301 | B16: CITY OF FONTANELLE | C16: 2447.59 | D16: 6.458677555e-05 | E16: 2111 | F16: 17242 | G16: -10558 | H16: 296 | I16: 910 | J16: 3545 | K16: 4751 | M16: 36 | N16: 44 | O16: 2019 | P16: 2099 | Q16: 3158
A17: 01302 | B17: CITY OF GREENFIELD | C17: 13831.93 | D17: 0.0003649956726 | E17: 11929 | F17: 97436 | G17: -59666 | H17: 1672 | I17: 5141 | J17: 20033 | K17: 26846 | M17: 202 | N17: 250 | O17: 11411 | P17: 11863 | Q17: 17846
A18: 01306 | B18: CITY OF ADAIR | C18: 7451.4 | D18: 0.0001966268449 | E18: 6427 | F18: 52490 | G18: -32143 | H18: 901 | I18: 2770 | J18: 10792 | K18: 14463 | M18: 109 | N18: 135 | O18: 6147 | P18: 6391 | Q18: 9614
A19: 02201 | B19: ADAMS COUNTY | C19: 32269.9 | D19: 0.0008515350971 | E19: 27831 | F19: 227319 | G19: -139201 | H19: 3900 | I19: 11995 | J19: 46738 | K19: 62633 | M19: 471 | N19: 583 | O19: 26621 | P19: 27675 | Q19: 41634
A20: 03201 | B20: ALLAMAKEE COUNTY | C20: 51593.96 | D20: 0.001361456582 | E20: 44498 | F20: 363443 | G20: -222558 | H20: 6236 | I20: 19178 | J20: 74725 | K20: 100139 | M20: 753 | N20: 932 | O20: 42563 | P20: 44248 | Q20: 66566
A21: 03304 | B21: CITY OF LANSING | C21: 12872.15 | D21: 0.0003396690879 | E21: 11102 | F21: 90675 | G21: -55526 | H21: 1556 | I21: 4785 | J21: 18643 | K21: 24984 | M21: 188 | N21: 232 | O21: 10619 | P21: 11039 | Q21: 16608
A22: 03306 | B22: CITY OF POSTVILLE | C22: 20561.62 | D22: 0.0005425781017 | E22: 17734 | F22: 144842 | G22: -88696 | H22: 2485 | I22: 7643 | J22: 29780 | K22: 39908 | M22: 300 | N22: 371 | O22: 16962 | P22: 17633 | Q22: 26528
A23: 03312 | B23: VETERAN'S MEMORIAL HOSPITAL | C23: 48660.71 | D23: 0.001284054255 | E23: 41968 | F23: 342781 | G23: -209905 | H23: 5881 | I23: 18088 | J23: 70477 | K23: 94446 | M23: 710 | N23: 879 | O23: 40143 | P23: 41732 | Q23: 62782
A24: 03313 | B24: WAUKON POLICE DEPARTMENT | C24: 28669.04 | D24: 0.0007565159409 | E24: 24726 | F24: 201953 | G24: -123668 | H24: 3465 | I24: 10656 | J24: 41522 | K24: 55643 | M24: 419 | N24: 518 | O24: 23651 | P24: 24588 | Q24: 36989
A25: 04201 | B25: APPANOOSE COUNTY | C25: 26244.16 | D25: 0.0006925284347 | E25: 22635 | F25: 184872 | G25: -113208 | H25: 3172 | I25: 9755 | J25: 38010 | K25: 50937 | M25: 383 | N25: 474 | O25: 21650 | P25: 22507 | Q25: 33860
A26: 04301 | B26: CITY OF CENTERVILLE | C26: 38741.85 | D26: 0.001022316307 | E26: 33413 | F26: 272909 | G26: -167119 | H26: 4682 | I26: 14401 | J26: 56111 | K26: 75194 | M26: 566 | N26: 700 | O26: 31960 | P26: 33226 | Q26: 49984
A27: 05201 | B27: AUDUBON COUNTY | C27: 17920.98 | D27: 0.0004728971408 | E27: 15456 | F27: 126241 | G27: -77305 | H27: 2166 | I27: 6661 | J27: 25956 | K27: 34783 | M27: 262 | N27: 324 | O27: 14784 | P27: 15370 | Q27: 23122
A28: 05302 | B28: CITY OF AUDUBON | C28: 21766.46 | D28: 0.0005743713067 | E28: 18773 | F28: 153330 | G28: -93893 | H28: 2631 | I28: 8091 | J28: 31525 | K28: 42247 | M28: 318 | N28: 393 | O28: 17956 | P28: 18667 | Q28: 28083
A29: 06201 | B29: BENTON COUNTY | C29: 110221.64 | D29: 0.002908518307 | E29: 95062 | F29: 776434 | G29: -475457 | H29: 13321 | I29: 40970 | J29: 159638 | K29: 213929 | M29: 1609 | N29: 1990 | O29: 90928 | P29: 94527 | Q29: 142207
A30: 06301 | B30: CITY OF VINTON | C30: 55824.81 | D30: 0.001473099855 | E30: 48147 | F30: 393247 | G30: -240808 | H30: 6747 | I30: 20750 | J30: 80853 | K30: 108350 | M30: 815 | N30: 1008 | O30: 46053 | P30: 47876 | Q30: 72025
A31: 06302 | B31: CITY OF BELLE PLAINE | C31: 24511.13 | D31: 0.0006467974015 | E31: 21140 | F31: 172664 | G31: -105732 | H31: 2962 | I31: 9111 | J31: 35500 | K31: 47573 | M31: 358 | N31: 443 | O31: 20221 | P31: 21022 | Q31: 31624
A32: 06315 | B32: CITY OF URBANA | C32: 9004.08 | D32: 0.0002375988193 | E32: 7766 | F32: 63427 | G32: -38840 | H32: 1088 | I32: 3347 | J32: 13041 | K32: 17476 | M32: 131 | N32: 163 | O32: 7428 | P32: 7722 | Q32: 11617
A33: 07001 | B33: UNIVERSITY OF NORTHERN IOWA | C33: 66593.4 | D33: 0.001757260399 | E33: 57434 | F33: 469104 | G33: -287260 | H33: 8048 | I33: 24753 | J33: 96450 | K33: 129251 | M33: 972 | N33: 1202 | O33: 54937 | P33: 57111 | Q33: 85918
A34: 07201 | B34: BLACK HAWK COUNTY | C34: 151534.23 | D34: 0.003998671061 | E34: 130692 | F34: 1067453 | G34: -653665 | H34: 18314 | I34: 56326 | J34: 219473 | K34: 294113 | M34: 2212 | N34: 2736 | O34: 125009 | P34: 129957 | Q34: 195508
A35: 07302 | B35: CITY OF CEDAR FALLS | C35: 243.17 | D35: 6.416747172e-06 | E35: 210 | F35: 1713 | G35: -1049 | H35: 29 | I35: 90 | J35: 352 | K35: 471 | M35: 4 | N35: 4 | O35: 201 | P35: 209 | Q35: 314
A36: 07304 | B36: CITY OF GILBERTVILLE | C36: 4420.1 | D36: 0.0001166371846 | E36: 3812 | F36: 31137 | G36: -19067 | H36: 534 | I36: 1643 | J36: 6402 | K36: 8579 | M36: 65 | N36: 80 | O36: 3646 | P36: 3791 | Q36: 5703
A37: 07306 | B37: CITY OF DUNKERTON | C37: 1481.55 | D37: 3.909500256e-05 | E37: 1278 | F37: 10436 | G37: -6391 | H37: 179 | I37: 551 | J37: 2146 | K37: 2876 | M37: 22 | N37: 27 | O37: 1222 | P37: 1271 | Q37: 1911
A38: 07311 | B38: CITY OF LA PORTE CITY | C38: 20347.02 | D38: 0.000536915257 | E38: 17548 | F38: 143331 | G38: -87770 | H38: 2459 | I38: 7563 | J38: 29469 | K38: 39491 | M38: 297 | N38: 367 | O38: 16785 | P38: 17449 | Q38: 26252
A39: 07319 | B39: CITY OF EVANSDALE | C39: 7698.26 | D39: 0.0002031409635 | E39: 6639 | F39: 54229 | G39: -33208 | H39: 930 | I39: 2861 | J39: 11150 | K39: 14941 | M39: 112 | N39: 139 | O39: 6351 | P39: 6602 | Q39: 9932
A40: 07334 | B40: HUDSON POLICE DEPARTMENT | C40: 28315.87 | D40: 0.000747196524 | E40: 24421 | F40: 199466 | G40: -122145 | H40: 3422 | I40: 10525 | J40: 41011 | K40: 54958 | M40: 413 | N40: 511 | O40: 23359 | P40: 24283 | Q40: 36533
A41: 08201 | B41: BOONE COUNTY | C41: 51325.56 | D41: 0.001354374067 | E41: 44266 | F41: 361553 | G41: -221400 | H41: 6203 | I41: 19078 | J41: 74337 | K41: 99618 | M41: 749 | N41: 927 | O41: 42341 | P41: 44017 | Q41: 66220
A42: 08204 | B42: BOONE COUNTY HOSPITAL | C42: 72614.4 | D42: 0.001916141982 | E42: 62627 | F42: 511518 | G42: -313233 | H42: 8776 | I42: 26991 | J42: 105170 | K42: 140937 | M42: 1060 | N42: 1311 | O42: 59904 | P42: 62275 | Q42: 93687
A43: 08301 | B43: CITY OF BOONE | C43: 11657.13 | D43: 0.000307607254 | E43: 10054 | F43: 82116 | G43: -50285 | H43: 1409 | I43: 4333 | J43: 16883 | K43: 22625 | M43: 170 | N43: 210 | O43: 9617 | P43: 9997 | Q43: 15040
A44: 08302 | B44: CITY OF OGDEN | C44: 12563.11 | D44: 0.0003315141694 | E44: 10835 | F44: 88498 | G44: -54193 | H44: 1518 | I44: 4670 | J44: 18196 | K44: 24384 | M44: 183 | N44: 227 | O44: 10364 | P44: 10774 | Q44: 16209
A45: 08303 | B45: CITY OF MADRID | C45: 21121.53 | D45: 0.0005573529543 | E45: 18216 | F45: 148786 | G45: -91111 | H45: 2553 | I45: 7851 | J45: 30591 | K45: 40995 | M45: 308 | N45: 381 | O45: 17424 | P45: 18113 | Q45: 27251
A46: 09201 | B46: BREMER COUNTY | C46: 68140.21 | D46: 0.001798077476 | E46: 58768 | F46: 480000 | G46: -293933 | H46: 8235 | I46: 25328 | J46: 98690 | K46: 132253 | M46: 995 | N46: 1230 | O46: 56213 | P46: 58438 | Q46: 87914
A47: 09302 | B47: CITY OF SUMNER | C47: 14593.96 | D47: 0.0003851040489 | E47: 12587 | F47: 102804 | G47: -62953 | H47: 1764 | I47: 5425 | J47: 21137 | K47: 28326 | M47: 213 | N47: 264 | O47: 12039 | P47: 12516 | Q47: 18829
A48: 09303 | B48: CITY OF WAVERLY | C48: 1580.43 | D48: 4.170423874e-05 | E48: 1363 | F48: 11133 | G48: -6817 | H48: 191 | I48: 587 | J48: 2289 | K48: 3067 | M48: 23 | N48: 29 | O48: 1304 | P48: 1356 | Q48: 2039
A49: 09304 | B49: CITY OF TRIPOLI | C49: 4997.53 | D49: 0.0001318743533 | E49: 4310 | F49: 35204 | G49: -21558 | H49: 604 | I49: 1858 | J49: 7238 | K49: 9700 | M49: 73 | N49: 90 | O49: 4123 | P49: 4286 | Q49: 6448
A50: 09305 | B50: CITY OF JANESVILLE | C50: 9419.27 | D50: 0.0002485548141 | E50: 8124 | F50: 66352 | G50: -40631 | H50: 1138 | I50: 3501 | J50: 13642 | K50: 18281 | M50: 138 | N50: 170 | O50: 7770 | P50: 8078 | Q50: 12153
A51: 09307 | B51: CITY OF READLYN | C51: 6069.33 | D51: 0.0001601569113 | E51: 5235 | F51: 42754 | G51: -26181 | H51: 734 | I51: 2256 | J51: 8790 | K51: 11780 | M51: 89 | N51: 110 | O51: 5007 | P51: 5206 | Q51: 7831
A52: 09318 | B52: WAVERLY HEALTH CENTER | C52: 91627.45 | D52: 0.002417856564 | E52: 79025 | F52: 645451 | G52: -395248 | H52: 11074 | I52: 34059 | J52: 132707 | K52: 177840 | M52: 1338 | N52: 1654 | O52: 75589 | P52: 78581 | Q52: 118217
A53: 09319 | B53: DENVER POLICE DEPARTMENT | C53: 19918.39 | D53: 0.0005256046087 | E53: 17179 | F53: 140311 | G53: -85921 | H53: 2407 | I53: 7404 | J53: 28849 | K53: 38660 | M53: 291 | N53: 360 | O53: 16432 | P53: 17083 | Q53: 25699
A54: 10201 | B54: BUCHANAN COUNTY | C54: 55839.49 | D54: 0.001473487229 | E54: 48159 | F54: 393350 | G54: -240872 | H54: 6749 | I54: 20756 | J54: 80874 | K54: 108379 | M54: 815 | N54: 1008 | O54: 46065 | P54: 47888 | Q54: 72044
A55: 10205 | B55: BUCHANAN COUNTY HEALTH CENTER | C55: 5389.49 | D55: 0.0001422173571 | E55: 4648 | F55: 37965 | G55: -23248 | H55: 651 | I55: 2003 | J55: 7806 | K55: 10460 | M55: 79 | N55: 97 | O55: 4446 | P55: 4622 | Q55: 6953
A56: 10301 | B56: CITY OF FAIRBANK | C56: 6783.4 | D56: 0.0001789997235 | E56: 5850 | F56: 47784 | G56: -29261 | H56: 820 | I56: 2521 | J56: 9825 | K56: 13166 | M56: 99 | N56: 122 | O56: 5596 | P56: 5817 | Q56: 8752
A57: 10302 | B57: CITY OF INDEPENDENCE | C57: 88324.62 | D57: 0.002330701796 | E57: 76176 | F57: 622185 | G57: -381001 | H57: 10675 | I57: 32831 | J57: 127924 | K57: 171430 | M57: 1289 | N57: 1595 | O57: 72864 | P57: 75748 | Q57: 113956
A58: 10303 | B58: CITY OF JESUP | C58: 18284.96 | D58: 0.000482501811 | E58: 15770 | F58: 128805 | G58: -78875 | H58: 2210 | I58: 6797 | J58: 26483 | K58: 35490 | M58: 267 | N58: 330 | O58: 15084 | P58: 15681 | Q58: 23591
A59: 10306 | B59: CITY OF LAMONT | C59: 154.59 | D59: 4.079306433e-06 | E59: 133 | F59: 1089 | G59: -667 | H59: 19 | I59: 57 | J59: 224 | K59: 300 | M59: 2 | N59: 3 | O59: 128 | P59: 133 | Q59: 199
A60: 11201 | B60: BUENA VISTA COUNTY | C60: 52423.22 | D60: 0.001383339017 | E60: 45213 | F60: 369285 | G60: -226135 | H60: 6336 | I60: 19486 | J60: 75926 | K60: 101748 | M60: 765 | N60: 947 | O60: 43247 | P60: 44959 | Q60: 67636
A61: 11204 | B61: BUENA VISTA REGIONAL MEDICAL CENTER | C61: 87201.83 | D61: 0.002301073718 | E61: 75208 | F61: 614276 | G61: -376158 | H61: 10539 | I61: 32414 | J61: 126298 | K61: 169251 | M61: 1273 | N61: 1575 | O61: 71938 | P61: 74786 | Q61: 112507
A62: 11301 | B62: CITY OF SIOUX RAPIDS | C62: 4650.36 | D62: 0.0001227132639 | E62: 4011 | F62: 32759 | G62: -20060 | H62: 562 | I62: 1729 | J62: 6735 | K62: 9026 | M62: 68 | N62: 84 | O62: 3836 | P62: 3988 | Q62: 6000
A63: 11302 | B63: CITY OF NEWELL | C63: 4683.96 | D63: 0.0001235998975 | E63: 4040 | F63: 32995 | G63: -20205 | H63: 566 | I63: 1741 | J63: 6784 | K63: 9091 | M63: 68 | N63: 85 | O63: 3864 | P63: 4017 | Q63: 6043
A64: 11303 | B64: CITY OF MARATHON | C64: 6.94 | D64: 1.831320696e-07 | E64: 6 | F64: 49 | G64: -30 | H64: 1 | I64: 3 | J64: 10 | K64: 14 | M64: 0 | N64: 0 | O64: 6 | P64: 6 | Q64: 9
A65: 11307 | B65: CITY OF STORM LAKE | C65: 7366.79 | D65: 0.0001943941642 | E65: 6354 | F65: 51894 | G65: -31778 | H65: 890 | I65: 2738 | J65: 10670 | K65: 14298 | M65: 108 | N65: 133 | O65: 6077 | P65: 6318 | Q65: 9505
A66: 12201 | B66: BUTLER COUNTY | C66: 31902.75 | D66: 0.0008418467773 | E66: 27515 | F66: 224733 | G66: -137617 | H66: 3856 | I66: 11858 | J66: 46206 | K66: 61920 | M66: 466 | N66: 576 | O66: 26318 | P66: 27360 | Q66: 41161
A67: 12302 | B67: CITY OF PARKERSBURG | C67: 11564.8 | D67: 0.0003051708586 | E67: 9974 | F67: 81466 | G67: -49886 | H67: 1398 | I67: 4299 | J67: 16750 | K67: 22447 | M67: 169 | N67: 209 | O67: 9540 | P67: 9918 | Q67: 14921
A68: 12305 | B68: CITY OF CLARKSVILLE | C68: 8859.12 | D68: 0.0002337736284 | E68: 7641 | F68: 62406 | G68: -38215 | H68: 1071 | I68: 3293 | J68: 12831 | K68: 17195 | M68: 129 | N68: 160 | O68: 7308 | P68: 7597 | Q68: 11430
A69: 12310 | B69: CITY OF APLINGTON | C69: 9966.46 | D69: 0.0002629940125 | E69: 8596 | F69: 70207 | G69: -42992 | H69: 1205 | I69: 3705 | J69: 14435 | K69: 19345 | M69: 146 | N69: 180 | O69: 8222 | P69: 8548 | Q69: 12859
A70: 12321 | B70: CITY OF BRISTOW | C70: 104.07 | D70: 2.746189407e-06 | E70: 90 | F70: 733 | G70: -449 | H70: 13 | I70: 39 | J70: 151 | K70: 203 | M70: 2 | N70: 2 | O70: 86 | P70: 90 | Q70: 134
A71: 13201 | B71: CALHOUN COUNTY | C71: 56064.72 | D71: 0.001479430577 | E71: 48354 | F71: 394937 | G71: -241843 | H71: 6776 | I71: 20840 | J71: 81201 | K71: 108817 | M71: 819 | N71: 1012 | O71: 46251 | P71: 48082 | Q71: 72334
A72: 13301 | B72: CITY OF ROCKWELL CITY | C72: 21360.83 | D72: 0.0005636675803 | E72: 18423 | F72: 150472 | G72: -92143 | H72: 2582 | I72: 7940 | J72: 30938 | K72: 41460 | M72: 312 | N72: 386 | O72: 17622 | P72: 18320 | Q72: 27560
A73: 13303 | B73: CITY OF LAKE CITY | C73: 18716.41 | D73: =+C73/$C$7 -> 0.0004938868731 | E73: =ROUND(D73*$E$7,0) -> 16142 | F73: =ROUND(D73*$F$7,0) -> 131844 | G73: =ROUND(D73*$G$7,0) -> -80736 | H73: =ROUND(D73*$H$7,0) -> 2262 | I73: =ROUND(D73*$I$7,0) -> 6957 | J73: =ROUND(D73*$J$7,0) -> 27108 | K73: =ROUND(SUM(H73:J73),0) -> 36327 | M73: =ROUND(D73*$M$7,0) -> 273 | N73: =ROUND(D73*$N$7,0) -> 338 | O73: =ROUND(D73*$O$7,0) -> 15440 | P73: =ROUND(SUM(M73:O73),0) -> 16051 | Q73: =ROUND(D73*$Q$7,0) -> 24148
A74: 13307 | B74: CITY OF POMEROY | C74: 3840.4 | D74: 0.0001013401153 | E74: 3312 | F74: 27053 | G74: -16566 | H74: 464 | I74: 1428 | J74: 5562 | K74: 7454 | M74: 56 | N74: 69 | O74: 3168 | P74: 3293 | Q74: 4955
A75: 13309 | B75: CITY OF FARNHAMVILLE | C75: 646.69 | D75: 1.706479512e-05 | E75: 558 | F75: 4555 | G75: -2790 | H75: 78 | I75: 240 | J75: 937 | K75: 1255 | M75: 9 | N75: 12 | O75: 533 | P75: 554 | Q75: 834
A76: 13323 | B76: MANSON POLICE DEPT | C76: 19251.26 | D76: 0.0005080004448 | E76: 16603 | F76: 135612 | G76: -83043 | H76: 2327 | I76: 7156 | J76: 27882 | K76: 37365 | M76: 281 | N76: 348 | O76: 15881 | P76: 16510 | Q76: 24838
A77: 14201 | B77: CARROLL COUNTY | C77: 127196.26 | D77: 0.003356442989 | E77: 109702 | F77: 896009 | G77: -548679 | H77: 15373 | I77: 47280 | J77: 184223 | K77: 246876 | M77: 1857 | N77: 2297 | O77: 104931 | P77: 109085 | Q77: 164108
A78: 14302 | B78: CITY OF CARROLL | C78: 2398.67 | D78: 6.329587918e-05 | E78: 2069 | F78: 16897 | G78: -10347 | H78: 290 | I78: 892 | J78: 3474 | K78: 4656 | M78: 35 | N78: 43 | O78: 1979 | P78: 2057 | Q78: 3095
A79: 14308 | B79: CITY OF MANNING | C79: 20469.73 | D79: 0.000540153317 | E79: 17654 | F79: 144195 | G79: -88299 | H79: 2474 | I79: 7609 | J79: 29647 | K79: 39730 | M79: 299 | N79: 370 | O79: 16887 | P79: 17556 | Q79: 26410
A80: 14309 | B80: CITY OF COON RAPIDS | C80: 12113.31 | D80: 0.0003196448891 | E80: 10447 | F80: 85330 | G80: -52253 | H80: 1464 | I80: 4503 | J80: 17544 | K80: 23511 | M80: 177 | N80: 219 | O80: 9993 | P80: 10389 | Q80: 15629
A81: 14312 | B81: CITY OF ARCADIA | C81: 39.64 | D81: 1.046016605e-06 | E81: 34 | F81: 279 | G81: -171 | H81: 5 | I81: 15 | J81: 57 | K81: 77 | M81: 1 | N81: 1 | O81: 33 | P81: 35 | Q81: 51
A82: 15201 | B82: CASS COUNTY | C82: 25123.55 | D82: 0.000662957883 | E82: 21668 | F82: 176978 | G82: -108374 | H82: 3036 | I82: 9339 | J82: 36387 | K82: 48762 | M82: 367 | N82: 454 | O82: 20726 | P82: 21547 | Q82: 32414
A83: 15302 | B83: CITY OF ATLANTIC | C83: 90451.98 | D83: 0.002386838372 | E83: 78011 | F83: 637171 | G83: -390178 | H83: 10932 | I83: 33622 | J83: 131005 | K83: 175559 | M83: 1321 | N83: 1633 | O83: 74619 | P83: 77573 | Q83: 116700
A84: 15305 | B84: CITY OF ANITA | C84: 59.46 | D84: 1.569024908e-06 | E84: 51 | F84: 419 | G84: -256 | H84: 7 | I84: 22 | J84: 86 | K84: 115 | M84: 1 | N84: 1 | O84: 49 | P84: 51 | Q84: 77
A85: 16201 | B85: CEDAR COUNTY | C85: 81086.45 | D85: 0.002139701644 | E85: 69934 | F85: 571197 | G85: -349778 | H85: 9800 | I85: 30140 | J85: 117440 | K85: 157380 | M85: 1184 | N85: 1464 | O85: 66893 | P85: 69541 | Q85: 104617
A86: 16302 | B86: CITY OF STANWOOD | C86: 205.15 | D86: 5.413478975e-06 | E86: 177 | F86: 1445 | G86: -885 | H86: 25 | I86: 76 | J86: 297 | K86: 398 | M86: 3 | N86: 4 | O86: 169 | P86: 176 | Q86: 265
A87: 16303 | B87: CITY OF TIPTON | C87: 50058.93 | D87: 0.001320950354 | E87: 43174 | F87: 352630 | G87: -215936 | H87: 6050 | I87: 18607 | J87: 72502 | K87: 97159 | M87: 731 | N87: 904 | O87: 41296 | P87: 42931 | Q87: 64586
A88: 16304 | B88: CITY OF WEST BRANCH | C88: 28497.58 | D88: 0.0007519914705 | E88: 24578 | F88: 200746 | G88: -122928 | H88: 3444 | I88: 10593 | J88: 41274 | K88: 55311 | M88: 416 | N88: 515 | O88: 23509 | P88: 24440 | Q88: 36767
A89: 16305 | B89: CITY OF DURANT | C89: 22509.02 | D89: 0.0005939659104 | E89: 19413 | F89: 158560 | G89: -97096 | H89: 2720 | I89: 8367 | J89: 32601 | K89: 43688 | M89: 329 | N89: 406 | O89: 18569 | P89: 19304 | Q89: 29041
A90: 16306 | B90: CITY OF MECHANICSVILLE | C90: 1784.64 | D90: 4.709291308e-05 | E90: 1539 | F90: 12572 | G90: -7698 | H90: 216 | I90: 663 | J90: 2585 | K90: 3464 | M90: 26 | N90: 32 | O90: 1472 | P90: 1530 | Q90: 2303
A91: 16307 | B91: CITY OF CLARENCE | C91: 8922.67 | D91: 0.0002354505798 | E91: 7695 | F91: 62854 | G91: -38489 | H91: 1078 | I91: 3317 | J91: 12923 | K91: 17318 | M91: 130 | N91: 161 | O91: 7361 | P91: 7652 | Q91: 11512
A92: 17201 | B92: CERRO GORDO COUNTY | C92: 144974.98 | D92: 0.003825586186 | E92: 125035 | F92: 1021247 | G92: -625370 | H92: 17521 | I92: 53888 | J92: 209973 | K92: 281382 | M92: 2117 | N92: 2618 | O92: 119598 | P92: 124333 | Q92: 187046
A93: 17303 | B93: CITY OF CLEAR LAKE | C93: 150719.4 | D93: 0.003977169403 | E93: 129989 | F93: 1061713 | G93: -650150 | H93: 18216 | I93: 56023 | J93: 218292 | K93: 292531 | M93: 2200 | N93: 2721 | O93: 124337 | P93: 129258 | Q93: 194457
A94: 17308 | B94: CITY OF ROCKWELL | C94: 4984.54 | D94: 0.0001315315744 | E94: 4299 | F94: 35113 | G94: -21502 | H94: 602 | I94: 1853 | J94: 7219 | K94: 9674 | M94: 73 | N94: 90 | O94: 4112 | P94: 4275 | Q94: 6431
A95: 18201 | B95: CHEROKEE COUNTY | C95: 22241.99 | D95: 0.0005869195478 | E95: 19183 | F95: 156679 | G95: -95944 | H95: 2688 | I95: 8267 | J95: 32214 | K95: 43169 | M95: 325 | N95: 402 | O95: 18349 | P95: 19076 | Q95: 28696
A96: 18302 | B96: CITY OF CHEROKEE | C96: 56712.09 | D96: 0.001496513316 | E96: 48912 | F96: 399497 | G96: -244636 | H96: 6854 | I96: 21080 | J96: 82138 | K96: 110072 | M96: 828 | N96: 1024 | O96: 46785 | P96: 48637 | Q96: 73170
A97: 18306 | B97: CITY OF MARCUS | C97: 4888.4 | D97: 0.0001289946411 | E97: 4216 | F97: 34435 | G97: -21087 | H97: 591 | I97: 1817 | J97: 7080 | K97: 9488 | M97: 71 | N97: 88 | O97: 4033 | P97: 4192 | Q97: 6307
A98: 18309 | B98: CITY OF AURELIA | C98: 5218.48 | D98: 0.0001377047612 | E98: 4501 | F98: 36761 | G98: -22511 | H98: 631 | I98: 1940 | J98: 7558 | K98: 10129 | M98: 76 | N98: 94 | O98: 4305 | P98: 4475 | Q98: 6733
A99: 19201 | B99: CHICKASAW COUNTY | C99: 45843.29 | D99: 0.00120970844 | E99: 39538 | F99: 322934 | G99: -197752 | H99: 5541 | I99: 17040 | J99: 66397 | K99: 88978 | M99: 669 | N99: 828 | O99: 37819 | P99: 39316 | Q99: 59147
A100: 19303 | B100: CITY OF NASHUA | C100: 4590.29 | D100: 0.0001211281424 | E100: 3959 | F100: 32335 | G100: -19801 | H100: 555 | I100: 1706 | J100: 6648 | K100: 8909 | M100: 67 | N100: 83 | O100: 3787 | P100: 3937 | Q100: 5922
A101: 19304 | B101: CITY OF NEW HAMPTON | C101: 32022.17 | D101: 0.0008449980211 | E101: 27618 | F101: 225574 | G101: -138132 | H101: 3870 | I101: 11903 | J101: 46379 | K101: 62152 | M101: 467 | N101: 578 | O101: 26417 | P101: 27462 | Q101: 41315
A102: 20201 | B102: CLARKE COUNTY | C102: 53706.21 | D102: 0.001417194437 | E102: 46319 | F102: 378323 | G102: -231669 | H102: 6491 | I102: 19963 | J102: 77785 | K102: 104239 | M102: 784 | N102: 970 | O102: 44305 | P102: 46059 | Q102: 69291
A103: 20204 | B103: CLARKE COUNTY HOSPITAL | C103: 47473.47 | D103: 0.001252725478 | E103: 40944 | F103: 334417 | G103: -204784 | H103: 5738 | I103: 17646 | J103: 68758 | K103: 92142 | M103: 693 | N103: 857 | O103: 39164 | P103: 40714 | Q103: 61250
A104: 20301 | B104: CITY OF OSCEOLA | C104: 65807.29 | D104: 0.001736516602 | E104: 56756 | F104: 463566 | G104: -283869 | H104: 7953 | I104: 24461 | J104: 95311 | K104: 127725 | M104: 961 | N104: 1188 | O104: 54288 | P104: 56437 | Q104: 84904
A105: 21201 | B105: CLAY COUNTY | C105: 61245.26 | D105: 0.001616134181 | E105: 52822 | F105: 431430 | G105: -264190 | H105: 7402 | I105: 22765 | J105: 88704 | K105: 118871 | M105: 894 | N105: 1106 | O105: 50525 | P105: 52525 | Q105: 79018
A106: 21302 | B106: SPENCER HOSPITAL | C106: 48101.05 | D106: 0.001269286 | E106: 41485 | F106: 338838 | G106: -207491 | H106: 5813 | I106: 17879 | J106: 69667 | K106: 93359 | M106: 702 | N106: 869 | O106: 39681 | P106: 41252 | Q106: 62060
A107: 21303 | B107: CITY OF SPENCER | C107: 2329.83 | D107: 6.147933571e-05 | E107: 2009 | F107: 16412 | G107: -10050 | H107: 282 | I107: 866 | J107: 3374 | K107: 4522 | M107: 34 | N107: 42 | O107: 1922 | P107: 1998 | Q107: 3006
A108: 22201 | B108: CLAYTON COUNTY | C108: 73056.83 | D108: 0.001927816784 | E108: 63009 | F108: 514634 | G108: -315141 | H108: 8829 | I108: 27156 | J108: 105811 | K108: 141796 | M108: 1067 | N108: 1319 | O108: 60269 | P108: 62655 | Q108: 94257
A109: 22302 | B109: CITY OF GUTTENBERG | C109: 21102.43 | D109: 0.0005568489453 | E109: 18200 | F109: 148652 | G109: -91028 | H109: 2550 | I109: 7844 | J109: 30563 | K109: 40957 | M109: 308 | N109: 381 | O109: 17409 | P109: 18098 | Q109: 27226
A110: 22303 | B110: CITY OF STRAWBERRY POINT | C110: 16159.15 | D110: 0.0004264061359 | E110: 13937 | F110: 113830 | G110: -69705 | H110: 1953 | I110: 6006 | J110: 23404 | K110: 31363 | M110: 236 | N110: 292 | O110: 13331 | P110: 13859 | Q110: 20848
A111: 22306 | B111: CITY OF ELKADER | C111: 14985.69 | D111: 0.0003954409834 | E111: 12925 | F111: 105564 | G111: -64643 | H111: 1811 | I111: 5570 | J111: 21704 | K111: 29085 | M111: 219 | N111: 271 | O111: 12363 | P111: 12853 | Q111: 19334
A112: 22308 | B112: CITY OF MONONA | C112: 10959.48 | D112: 0.0002891977312 | E112: 9452 | F112: 77202 | G112: -47275 | H112: 1325 | I112: 4074 | J112: 15873 | K112: 21272 | M112: 160 | N112: 198 | O112: 9041 | P112: 9399 | Q112: 14140
A113: 22311 | B113: CITY OF GARNAVILLO | C113: 2351.5 | D113: 6.205116164e-05 | E113: 2028 | F113: 16565 | G113: -10144 | H113: 284 | I113: 874 | J113: 3406 | K113: 4564 | M113: 34 | N113: 42 | O113: 1940 | P113: 2016 | Q113: 3034
A114: 22324 | B114: GUTTENBERG MUNIC HOSP | C114: 14636.86 | D114: 0.00038623609 | E114: 12624 | F114: 103106 | G114: -63138 | H114: 1769 | I114: 5441 | J114: 21199 | K114: 28409 | M114: 214 | N114: 264 | O114: 12075 | P114: 12553 | Q114: 18884
A115: 23201 | B115: CLINTON COUNTY | C115: 92308.65 | D115: 0.002435832006 | E115: 79612 | F115: 650250 | G115: -398187 | H115: 11156 | I115: 34312 | J115: 133694 | K115: 179162 | M115: 1348 | N115: 1667 | O115: 76151 | P115: 79166 | Q115: 119096
A116: 24201 | B116: CRAWFORD COUNTY | C116: 28022.75 | D116: 0.0007394617009 | E116: 24168 | F116: 197401 | G116: -120880 | H116: 3387 | I116: 10416 | J116: 40586 | K116: 54389 | M116: 409 | N116: 506 | O116: 23118 | P116: 24033 | Q116: 36155
A117: 24204 | B117: CRAWFORD COUNTY MEMORIAL HOSPITAL | C117: 61532.68 | D117: 0.001623718594 | E117: 53069 | F117: 433455 | G117: -265430 | H117: 7437 | I117: 22872 | J117: 89120 | K117: 119429 | M117: 898 | N117: 1111 | O117: 50762 | P117: 52771 | Q117: 79389
A118: 24301 | B118: CITY OF DENISON | C118: 81309.46 | D118: 0.002145586411 | E118: 70126 | F118: 572768 | G118: -350740 | H118: 9827 | I118: 30223 | J118: 117763 | K118: 157813 | M118: 1187 | N118: 1468 | O118: 67077 | P118: 69732 | Q118: 104905
A119: 24303 | B119: CITY OF MANILLA | C119: 2666.16 | D119: 7.035438023e-05 | E119: 2299 | F119: 18781 | G119: -11501 | H119: 322 | I119: 991 | J119: 3861 | K119: 5174 | M119: 39 | N119: 48 | O119: 2199 | P119: 2286 | Q119: 3440
A120: 24305 | B120: CITY OF CHARTER OAK | C120: 245.37 | D120: 6.474800566e-06 | E120: 212 | F120: 1728 | G120: -1058 | H120: 30 | I120: 91 | J120: 355 | K120: 476 | M120: 4 | N120: 4 | O120: 202 | P120: 210 | Q120: 317
A121: 25201 | B121: DALLAS COUNTY | C121: 227046.1 | D121: 0.00599127121 | E121: 195818 | F121: 1599381 | G121: -979396 | H121: 27440 | I121: 84395 | J121: 328839 | K121: 440674 | M121: 3315 | N121: 4100 | O121: 187303 | P121: 194718 | Q121: 292933
A122: 25301 | B122: CITY OF WOODWARD | C122: 6433.92 | D122: 0.000169777678 | E122: 5549 | F122: 45322 | G122: -27754 | H122: 778 | I122: 2392 | J122: 9318 | K122: 12488 | M122: 94 | N122: 116 | O122: 5308 | P122: 5518 | Q122: 8301
A123: 25303 | B123: CITY OF MINBURN | C123: 162.33 | D123: 4.283548828e-06 | E123: 140 | F123: 1144 | G123: -700 | H123: 20 | I123: 60 | J123: 235 | K123: 315 | M123: 2 | N123: 3 | O123: 134 | P123: 139 | Q123: 209
A124: 25305 | B124: CITY OF VAN METER | C124: 11295.22 | D124: 0.0002980572069 | E124: 9742 | F124: 79567 | G124: -48724 | H124: 1365 | I124: 4199 | J124: 16359 | K124: 21923 | M124: 165 | N124: 204 | O124: 9318 | P124: 9687 | Q124: 14573
A125: 25306 | B125: CITY OF DALLAS CENTER | C125: 81.26 | D125: 2.144281265e-06 | E125: 70 | F125: 572 | G125: -351 | H125: 10 | I125: 30 | J125: 118 | K125: 158 | M125: 1 | N125: 1 | O125: 67 | P125: 69 | Q125: 105
A126: 25308 | B126: CITY OF PERRY | C126: 71820.85 | D126: 0.001895201859 | E126: 61943 | F126: 505928 | G126: -309810 | H126: 8680 | I126: 26696 | J126: 104021 | K126: 139397 | M126: 1049 | N126: 1297 | O126: 59249 | P126: 61595 | Q126: 92663
A127: 25312 | B127: CITY OF ADEL | C127: 53673.72 | D127: 0.001416337094 | E127: 46291 | F127: 378094 | G127: -231529 | H127: 6487 | I127: 19951 | J127: 77738 | K127: 104176 | M127: 784 | N127: 969 | O127: 44278 | P127: 46031 | Q127: 69249
A128: 25314 | B128: CITY OF GRANGER | C128: 12182.73 | D128: 0.0003214767376 | E128: 10507 | F128: 85819 | G128: -52552 | H128: 1472 | I128: 4528 | J128: 17645 | K128: 23645 | M128: 178 | N128: 220 | O128: 10050 | P128: 10448 | Q128: 15718
A129: 25315 | B129: CITY OF WAUKEE | C129: 342598.88 | D129: 0.00904046714 | E129: 295478 | F129: 2413370 | G129: -1477850 | H129: =ROUND(D129*$H$7,0)-1 -> 41405 | I129: 127346 | J129: 496198 | K129: 664949 | M129: 5002 | N129: 6186 | O129: 282629 | P129: 293817 | Q129: 442018
A130: 25318 | B130: CITY OF DE SOTO | C130: 7214.96 | D130: 0.0001903876884 | E130: 6223 | F130: 50824 | G130: -31123 | H130: 872 | I130: 2682 | J130: 10450 | K130: 14004 | M130: 105 | N130: 130 | O130: 5952 | P130: 6187 | Q130: 9309
A131: 26201 | B131: DAVIS COUNTY | C131: 38423.26 | D131: 0.001013909384 | E131: 33139 | F131: 270665 | G131: -165744 | H131: 4644 | I131: 14282 | J131: 55650 | K131: 74576 | M131: 561 | N131: 694 | O131: 31698 | P131: 32953 | Q131: 49573
A132: 26203 | B132: DAVIS COUNTY HOSPITAL | C132: 41693.15 | D132: 0.001100194935 | E132: 35959 | F132: 293699 | G132: -179849 | H132: 5039 | I132: 15498 | J132: 60386 | K132: 80923 | M132: 609 | N132: 753 | O132: 34395 | P132: 35757 | Q132: 53792
A133: 26301 | B133: CITY OF BLOOMFIELD | C133: 31449.25 | D133: 0.0008298798618 | E133: 27124 | F133: 221538 | G133: -135661 | H133: 3801 | I133: 11690 | J133: 45549 | K133: 61040 | M133: 459 | N133: 568 | O133: 25944 | P133: 26971 | Q133: 40576
A134: 27201 | B134: DECATUR COUNTY | C134: 56311.55 | D134: 0.001485943904 | E134: 48566 | F134: 396676 | G134: -242908 | H134: 6806 | I134: 20931 | J134: 81558 | K134: 109295 | M134: 822 | N134: 1017 | O134: 46455 | P134: 48294 | Q134: 72653
A135: 27204 | B135: DECATUR COUNTY HOSPITAL | C135: 51995.46 | D135: 0.001372051326 | E135: 44844 | F135: 366272 | G135: -224290 | H135: 6284 | I135: 19327 | J135: 75307 | K135: 100918 | M135: 759 | N135: 939 | O135: 42894 | P135: 44592 | Q135: 67084
A136: 27301 | B136: CITY OF LAMONI | C136: 18775.07 | D136: 0.0004954347877 | E136: 16193 | F136: 132257 | G136: -80989 | H136: 2269 | I136: 6979 | J136: 27193 | K136: 36441 | M136: 274 | N136: 339 | O136: 15489 | P136: 16102 | Q136: 24223
A137: 27302 | B137: CITY OF LEON | C137: 15918.78 | D137: =+C137/$C$7 -> 0.0004200632749 | E137: =ROUND(D137*$E$7,0) -> 13729 | F137: =ROUND(D137*$F$7,0) -> 112137 | G137: =ROUND(D137*$G$7,0) -> -68668 | H137: =ROUND(D137*$H$7,0) -> 1924 | I137: =ROUND(D137*$I$7,0) -> 5917 | J137: =ROUND(D137*$J$7,0) -> 23056 | K137: =ROUND(SUM(H137:J137),0) -> 30897 | M137: =ROUND(D137*$M$7,0) -> 232 | N137: =ROUND(D137*$N$7,0) -> 287 | O137: =ROUND(D137*$O$7,0) -> 13132 | P137: =ROUND(SUM(M137:O137),0) -> 13651 | Q137: =ROUND(D137*$Q$7,0) -> 20538
A138: 28201 | B138: DELAWARE COUNTY | C138: 24822.15 | D138: 0.0006550045681 | E138: 21408 | F138: 174855 | G138: -107074 | H138: 3000 | I138: 9227 | J138: 35951 | K138: 48178 | M138: 362 | N138: 448 | O138: 20477 | P138: 21287 | Q138: 32025
A139: 28204 | B139: REGIONAL MEDICAL CENTER | C139: 65785.93 | D139: 0.001735952956 | E139: 56738 | F139: 463416 | G139: -283777 | H139: 7951 | I139: 24453 | J139: 95280 | K139: 127684 | M139: 960 | N139: 1188 | O139: 54271 | P139: 56419 | Q139: 84877
A140: 28301 | B140: CITY OF EDGEWOOD | C140: 2379.53 | D140: 6.279081465e-05 | E140: 2052 | F140: 16762 | G140: -10264 | H140: 288 | I140: 884 | J140: 3446 | K140: 4618 | M140: 35 | N140: 43 | O140: 1963 | P140: 2041 | Q140: 3070
A141: 28304 | B141: CITY OF MANCHESTER | C141: 62801.91 | D141: 0.001657210916 | E141: 54164 | F141: 442396 | G141: -270905 | H141: 7590 | I141: 23344 | J141: 90958 | K141: 121892 | M141: 917 | N141: 1134 | O141: 51809 | P141: 53860 | Q141: 81027
A142: 28312 | B142: CITY OF GREELEY | C142: 222.98 | D142: 5.883975344e-06 | E142: 192 | F142: 1571 | G142: -962 | H142: 27 | I142: 83 | J142: 323 | K142: 433 | M142: 3 | N142: 4 | O142: 184 | P142: 191 | Q142: 288
A143: 29201 | B143: DES MOINES COUNTY | C143: 129571.36 | D143: 0.003419116905 | E143: 111750 | F143: 912740 | G143: -558925 | H143: 15660 | I143: 48163 | J143: 187663 | K143: 251486 | M143: 1892 | N143: 2340 | O143: 106891 | P143: 111123 | Q143: 167172
A144: 29305 | B144: CITY OF WEST BURLINGTON | C144: 61452.95 | D144: 0.001621614686 | E144: 53001 | F144: 432893 | G144: -265086 | H144: 7427 | I144: 22842 | J144: 89005 | K144: 119274 | M144: 897 | N144: 1110 | O144: 50696 | P144: 52703 | Q144: 79286
A145: 30201 | B145: DICKINSON COUNTY | C145: 67132.88 | D145: 0.001771496146 | E145: 57899 | F145: 472904 | G145: -289587 | H145: 8114 | I145: 24954 | J145: 97231 | K145: 130299 | M145: 980 | N145: 1212 | O145: 55382 | P145: 57574 | Q145: 86614
A146: 30204 | B146: LAKES REGIONAL HEALTHCARE | C146: 67131.52 | D146: 0.001771460259 | E146: 57898 | F146: 472895 | G146: -289581 | H146: 8113 | I146: 24953 | J146: 97229 | K146: 130295 | M146: 980 | N146: 1212 | O146: 55381 | P146: 57573 | Q146: 86613
A147: 30301 | B147: CITY OF SPIRIT LAKE | C147: 67240.99 | D147: 0.001774348943 | E147: 57993 | F147: 473666 | G147: -290054 | H147: 8127 | I147: 24994 | J147: 97388 | K147: 130509 | M147: 982 | N147: 1214 | O147: 55471 | P147: 57667 | Q147: 86754
A148: 30302 | B148: CITY OF ARNOLDS PARK | C148: 36675.18 | D148: 0.0009677812129 | E148: 31631 | F148: 258351 | G148: -158204 | H148: 4432 | I148: 13632 | J148: 53118 | K148: 71182 | M148: 535 | N148: 662 | O148: 30255 | P148: 31452 | Q148: 47318
A149: 30305 | B149: CITY OF LAKE PARK | C149: 13464.85 | D149: 0.0003553092 | E149: 11613 | F149: 94850 | G149: -58083 | H149: 1627 | I149: 5005 | J149: 19502 | K149: 26134 | M149: 197 | N149: 243 | O149: 11108 | P149: 11548 | Q149: 17372
A150: 30306 | B150: CITY OF OKOBOJI | C150: 24382.15 | D150: 0.0006433938893 | E150: 21029 | F150: 171755 | G150: -105176 | H150: 2947 | I150: 9063 | J150: 35314 | K150: 47324 | M150: 356 | N150: 440 | O150: 20114 | P150: 20910 | Q150: 31458
A151: 30307 | B151: CITY OF MILFORD | C151: 36500.64 | D151: 0.0009631754678 | E151: 31480 | F151: 257122 | G151: -157451 | H151: 4411 | I151: 13568 | J151: 52865 | K151: 70844 | M151: 533 | N151: 659 | O151: 30111 | P151: 31303 | Q151: 47093
A152: 31201 | B152: DUBUQUE COUNTY | C152: 46967.7 | D152: 0.001239379266 | E152: 40508 | F152: 330855 | G152: -202602 | H152: 5676 | I152: 17458 | J152: 68025 | K152: 91159 | M152: 686 | N152: 848 | O152: 38746 | P152: 40280 | Q152: 60597
A153: 31301 | B153: CITY OF CASCADE | C153: 10088.22 | D153: 0.000266207004 | E153: 8701 | F153: 71064 | G153: -43517 | H153: 1219 | I153: 3750 | J153: 14611 | K153: 19580 | M153: 147 | N153: 182 | O153: 8322 | P153: 8651 | Q153: 13016
A154: 31303 | B154: CITY OF FARLEY | C154: 6414.29 | D154: 0.0001692596834 | E154: 5532 | F154: 45184 | G154: -27669 | H154: 775 | I154: 2384 | J154: 9290 | K154: 12449 | M154: 94 | N154: 116 | O154: 5292 | P154: 5502 | Q154: 8276
A155: 31306 | B155: CITY OF DYERSVILLE | C155: 37066.68 | D155: 0.0009781120783 | E155: 31969 | F155: 261109 | G155: -159892 | H155: 4480 | I155: 13778 | J155: 53685 | K155: 71943 | M155: 541 | N155: 669 | O155: 30578 | P155: 31788 | Q155: 47823
A156: 31307 | B156: CITY OF EPWORTH | C156: 6414.92 | D156: 0.0001692763078 | E156: 5533 | F156: 45189 | G156: -27672 | H156: 775 | I156: 2384 | J156: 9291 | K156: 12450 | M156: 94 | N156: 116 | O156: 5292 | P156: 5502 | Q156: 8276
A157: 31308 | B157: CITY OF NEW VIENNA | C157: 661.65 | D157: 1.74595582e-05 | E157: 571 | F157: 4661 | G157: -2854 | H157: 80 | I157: 246 | J157: 958 | K157: 1284 | M157: 10 | N157: 12 | O157: 546 | P157: 568 | Q157: 854
A158: 31311 | B158: CITY OF PEOSTA | C158: 15747.31 | D158: 0.0004155385406 | E158: 13581 | F158: 110929 | G158: -67928 | H158: 1903 | I158: 5853 | J158: 22807 | K158: 30563 | M158: 230 | N158: 284 | O158: 12991 | P158: 13505 | Q158: 20317
A159: 31319 | B159: CITY OF ASBURY | C159: 30457.51 | D159: 0.0008037099197 | E159: 26268 | F159: 214552 | G159: -131383 | H159: 3681 | I159: 11321 | J159: 44113 | K159: 59115 | M159: 445 | N159: 550 | O159: 25126 | P159: 26121 | Q159: 39296
A160: 32201 | B160: EMMET COUNTY | C160: 38144.76 | D160: 0.001006560352 | E160: 32898 | F160: 268703 | G160: -164543 | H160: 4610 | I160: 14179 | J160: 55246 | K160: 74035 | M160: 557 | N160: 689 | O160: 31468 | P160: 32714 | Q160: 49214
A161: 32301 | B161: CITY OF ARMSTRONG | C161: 6514.44 | D161: 0.0001719024322 | E161: 5618 | F161: 45890 | G161: -28101 | H161: 787 | I161: 2421 | J161: 9435 | K161: 12643 | M161: 95 | N161: 118 | O161: 5374 | P161: 5587 | Q161: 8405
A162: 32303 | B162: CITY OF ESTHERVILLE | C162: 1578.2 | D162: 4.16453937e-05 | E162: 1361 | F162: 11117 | G162: -6808 | H162: 191 | I162: 587 | J162: 2286 | K162: 3064 | M162: 23 | N162: 28 | O162: 1302 | P162: 1353 | Q162: 2036
A163: 33201 | B163: FAYETTE COUNTY | C163: 71404.76 | D163: 0.001884222115 | E163: 61584 | F163: 502997 | G163: -308015 | H163: 8630 | I163: 26542 | J163: 103418 | K163: 138590 | M163: 1042 | N163: 1289 | O163: 58906 | P163: 61237 | Q163: 92126
A164: 33302 | B164: CITY OF WEST UNION | C164: 22356.66 | D164: 0.000589945449 | E164: 19282 | F164: 157487 | G164: -96439 | H164: 2702 | I164: 8310 | J164: 32380 | K164: 43392 | M164: 326 | N164: 404 | O164: 18443 | P164: 19173 | Q164: 28844
A165: 33305 | B165: CITY OF FAYETTE | C165: 17696.3 | D165: 0.000466968306 | E165: 15262 | F165: 124658 | G165: -76336 | H165: 2139 | I165: 6578 | J165: 25630 | K165: 34347 | M165: 258 | N165: 320 | O165: 14599 | P165: 15177 | Q165: 22832
A166: 34201 | B166: FLOYD COUNTY | C166: 24291.68 | D166: 0.0006410065754 | E166: 20951 | F166: 171118 | G166: -104786 | H166: 2936 | I166: 9029 | J166: 35183 | K166: 47148 | M166: 355 | N166: 439 | O166: 20040 | P166: 20834 | Q166: 31341
A167: 34302 | B167: CITY OF CHARLES CITY | C167: 1031.26 | D167: 2.721279224e-05 | E167: 889 | F167: 7265 | G167: -4448 | H167: 125 | I167: 383 | J167: 1494 | K167: 2002 | M167: 15 | N167: 19 | O167: 851 | P167: 885 | Q167: 1331
A168: 34305 | B168: CITY OF NORA SPRINGS | C168: 9114.04 | D168: 0.0002405004334 | E168: 7860 | F168: 64202 | G168: -39315 | H168: 1102 | I168: 3388 | J168: 13200 | K168: 17690 | M168: 133 | N168: 165 | O168: 7519 | P168: 7817 | Q168: 11759
A169: 35201 | B169: FRANKLIN COUNTY | C169: 23224.77 | D169: 0.0006128530543 | E169: 20030 | F169: 163602 | G169: -100183 | H169: 2807 | I169: 8633 | J169: 33637 | K169: 45077 | M169: 339 | N169: 419 | O169: 19159 | P169: 19917 | Q169: 29964
A170: 35205 | B170: FRANKLIN GEN HOSP | C170: 29095.81 | D170: 0.0007677775077 | E170: 25094 | F170: 204960 | G170: -125509 | H170: 3516 | I170: 10815 | J170: 42141 | K170: 56472 | M170: 425 | N170: 525 | O170: 24003 | P170: 24953 | Q170: 37539
A171: 35301 | B171: CITY OF HAMPTON | C171: 40149 | D171: 0.00105944805 | E171: 34627 | F171: 282822 | G171: -173189 | H171: 4852 | I171: 14924 | J171: 58149 | K171: 77925 | M171: 586 | N171: 725 | O171: 33121 | P171: 34432 | Q171: 51800
A172: 35309 | B172: CITY OF SHEFFIELD | C172: 9629.72 | D172: 0.0002541081489 | E172: 8305 | F172: 67835 | G172: -41539 | H172: 1164 | I172: 3579 | J172: 13947 | K172: 18690 | M172: 141 | N172: 174 | O172: 7944 | P172: 8259 | Q172: 12424
A173: 35311 | B173: CITY OF HANSELL | C173: 188.31 | D173: 4.969106633e-06 | E173: 162 | F173: 1327 | G173: -812 | H173: 23 | I173: 70 | J173: 273 | K173: 366 | M173: 3 | N173: 3 | O173: 155 | P173: 161 | Q173: 243
A174: 36201 | B174: FREMONT COUNTY | C174: 64569.73 | D174: 0.001703859984 | E174: 55689 | F174: 454849 | G174: -278531 | H174: 7804 | I174: 24001 | J174: 93519 | K174: 125324 | M174: 943 | N174: 1166 | O174: 53267 | P174: 55376 | Q174: 83307
A175: 36306 | B175: CITY OF TABOR | C175: 4892.4 | D175: 0.0001291001927 | E175: 4219 | F175: 34464 | G175: -21104 | H175: 591 | I175: 1819 | J175: 7086 | K175: 9496 | M175: 71 | N175: 88 | O175: 4036 | P175: 4195 | Q175: 6312
A176: 37201 | B176: GREENE COUNTY | C176: 82788.24 | D176: 0.002184608319 | E176: 71402 | F176: 583185 | G176: -357119 | H176: 10006 | I176: 30773 | J176: 119905 | K176: 160684 | M176: 1209 | N176: 1495 | O176: 68297 | P176: 71001 | Q176: 106813
A177: 37303 | B177: CITY OF JEFFERSON | C177: 43558.3 | D177: 0.001149412338 | E177: 37567 | F177: 306838 | G177: -187895 | H177: 5264 | I177: 16191 | J177: 63087 | K177: 84542 | M177: 636 | N177: 786 | O177: 35934 | P177: 37356 | Q177: 56199
A178: 38201 | B178: GRUNDY COUNTY | C178: 29999.1 | D178: 0.0007916134395 | E178: 25873 | F178: 211323 | G178: -129405 | H178: 3626 | I178: 11151 | J178: 43449 | K178: 58226 | M178: 438 | N178: 542 | O178: 24748 | P178: 25728 | Q178: 38705
A179: 38303 | B179: CITY OF GRUNDY CENTER | C179: 44202.68 | D179: 0.001166416178 | E179: 38123 | F179: 311377 | G179: -190675 | H179: 5342 | I179: 16430 | J179: 64020 | K179: 85792 | M179: 645 | N179: 798 | O179: 36465 | P179: 37908 | Q179: 57030
A180: 38307 | B180: CITY OF BEAMAN | C180: 12.48 | D180: 3.293210705e-07 | E180: 11 | F180: 88 | G180: -54 | H180: 2 | I180: 5 | J180: 18 | K180: 25 | M180: 0 | N180: 0 | O180: 10 | P180: 10 | Q180: 16
A181: 39201 | B181: GUTHRIE COUNTY | C181: 31669.47 | D181: 0.0008356910066 | E181: 27314 | F181: 223089 | G181: -136611 | H181: 3827 | I181: 11772 | J181: 45868 | K181: 61467 | M181: 462 | N181: 572 | O181: 26126 | P181: 27160 | Q181: 40860
A182: 39301 | B182: CITY OF PANORA | C182: 45429.46 | D182: 0.001198788333 | E182: 39181 | F182: 320019 | G182: -195967 | H182: 5490 | I182: 16886 | J182: 65797 | K182: 88173 | M182: 663 | N182: 820 | O182: 37477 | P182: 38960 | Q182: 58613
A183: 39303 | B183: CITY OF STUART | C183: 37305.01 | D183: 0.000984401108 | E183: 32174 | F183: 262788 | G183: -160921 | H183: 4509 | I183: 13867 | J183: 54030 | K183: 72406 | M183: 545 | N183: 674 | O183: 30775 | P183: 31994 | Q183: 48131
A184: 40201 | B184: HAMILTON COUNTY | C184: 107363.23 | D184: 0.002833090852 | E184: 92596 | F184: 756299 | G184: -463127 | H184: 12976 | I184: 39908 | J184: 155498 | K184: 208382 | M184: 1567 | N184: 1939 | O184: 88570 | P184: 92076 | Q184: 138519
A185: 40202 | B185: HAMILTON HOSPITAL | C185: 47148.07 | D185: 0.001244138853 | E185: 40663 | F185: 332125 | G185: -203380 | H185: 5698 | I185: 17525 | J185: 68286 | K185: 91509 | M185: 688 | N185: 851 | O185: 38895 | P185: 40434 | Q185: 60830
A186: 40302 | B186: CITY OF WEBSTER CITY | C186: 2803.01 | D186: 7.396556521e-05 | E186: 2417 | F186: 19745 | G186: -12091 | H186: 339 | I186: 1042 | J186: 4060 | K186: 5441 | M186: 41 | N186: 51 | O186: 2312 | P186: 2404 | Q186: 3616
A187: 40303 | B187: CITY OF STRATFORD | C187: 442.98 | D187: 1.168931473e-05 | E187: 382 | F187: 3120 | G187: -1911 | H187: 54 | I187: 165 | J187: 642 | K187: 861 | M187: 6 | N187: 8 | O187: 365 | P187: 379 | Q187: 572
A188: 40304 | B188: CITY OF JEWELL | C188: 10948.19 | D188: 0.0002888998117 | E188: 9442 | F188: 77122 | G188: -47227 | H188: 1323 | I188: 4070 | J188: 15857 | K188: 21250 | M188: 160 | N188: 198 | O188: 9032 | P188: 9390 | Q188: 14125
A189: 40307 | B189: CITY OF BLAIRSBURG | C189: 153.36 | D189: 4.046849308e-06 | E189: 132 | F189: 1080 | G189: -662 | H189: 19 | I189: 57 | J189: 222 | K189: 298 | M189: 2 | N189: 3 | O189: 127 | P189: 132 | Q189: 198
A190: 40308 | B190: CITY OF WILLIAMS | C190: 127.34 | D190: 3.360235987e-06 | E190: 110 | F190: 897 | G190: -549 | H190: 15 | I190: 47 | J190: 184 | K190: 246 | M190: 2 | N190: 2 | O190: 105 | P190: 109 | Q190: 164
A191: 41201 | B191: HANCOCK COUNTY | C191: 40640 | D191: 0.001072404512 | E191: 35050 | F191: 286280 | G191: -175307 | H191: 4912 | I191: 15106 | J191: 58860 | K191: 78878 | M191: 593 | N191: 734 | O191: 33526 | P191: 34853 | Q191: 52433
A192: 41302 | B192: CITY OF BRITT | C192: 21673.57 | D192: 0.0005719201341 | E192: 18693 | F192: 152675 | G192: -93492 | H192: 2619 | I192: 8056 | J192: 31391 | K192: 42066 | M192: 316 | N192: 391 | O192: 17880 | P192: 18587 | Q192: 27963
A193: 41303 | B193: CITY OF GARNER | C193: 31496.12 | D193: 0.000831116663 | E193: 27164 | F193: 221868 | G193: -135863 | H193: 3807 | I193: 11707 | J193: 45617 | K193: 61131 | M193: 460 | N193: 569 | O193: 25983 | P193: 27012 | Q193: 40636
A194: 41305 | B194: CITY OF KANAWHA | C194: 4967.92 | D194: 0.0001310930074 | E194: 4285 | F194: 34996 | G194: -21430 | H194: 600 | I194: 1847 | J194: 7195 | K194: 9642 | M194: 73 | N194: 90 | O194: 4098 | P194: 4261 | Q194: 6410
A195: 42201 | B195: HARDIN COUNTY | C195: 85715.12 | D195: 0.002261842554 | E195: 73926 | F195: 603803 | G195: -369745 | H195: 10359 | I195: 31861 | J195: 124144 | K195: 166364 | M195: 1251 | N195: 1548 | O195: 70711 | P195: 73510 | Q195: 110589
A196: 42302 | B196: CITY OF ACKLEY | C196: 19134.05 | D196: 0.0005049075183 | E196: 16502 | F196: 134786 | G196: -82537 | H196: 2312 | I196: 7112 | J196: 27713 | K196: 37137 | M196: 279 | N196: 345 | O196: 15785 | P196: 16409 | Q196: 24687
A197: 42303 | B197: CITY OF ELDORA | C197: 50193.22 | D197: 0.001324493986 | E197: 43290 | F197: 353576 | G197: -216516 | H197: 6066 | I197: 18657 | J197: 72697 | K197: 97420 | M197: 733 | N197: 906 | O197: 41407 | P197: 43046 | Q197: 64759
A198: 42304 | B198: CITY OF IOWA FALLS | C198: 92154 | D198: 0.002431751116 | E198: 79479 | F198: 649161 | G198: -397520 | H198: 11138 | I198: 34254 | J198: 133470 | K198: 178862 | M198: 1345 | N198: 1664 | O198: 76023 | P198: 79032 | Q198: 118896
A199: 42315 | B199: CITY OF HUBBARD | C199: 202.93 | D199: 5.354897823e-06 | E199: 175 | F199: 1430 | G199: -875 | H199: 25 | I199: 75 | J199: 294 | K199: 394 | M199: 3 | N199: 4 | O199: 167 | P199: 174 | Q199: 262
A200: 43201 | B200: HARRISON COUNTY | C200: 51060.5 | D200: 0.001347379689 | E200: 44038 | F200: 359686 | G200: -220257 | H200: 6171 | I200: 18980 | J200: 73953 | K200: 99104 | M200: 745 | N200: 922 | O200: 42123 | P200: 43790 | Q200: 65878
A201: 43301 | B201: CITY OF MISSOURI VALLEY | C201: 31919.91 | D201: =+C201/$C$7 -> 0.0008422995938 | E201: =ROUND(D201*$E$7,0) -> 27530 | F201: =ROUND(D201*$F$7,0) -> 224853 | G201: =ROUND(D201*$G$7,0) -> -137691 | H201: =ROUND(D201*$H$7,0) -> 3858 | I201: =ROUND(D201*$I$7,0) -> 11865 | J201: =ROUND(D201*$J$7,0) -> 46231 | K201: =ROUND(SUM(H201:J201),0) -> 61954 | M201: =ROUND(D201*$M$7,0) -> 466 | N201: =ROUND(D201*$N$7,0) -> 576 | O201: =ROUND(D201*$O$7,0) -> 26333 | P201: =ROUND(SUM(M201:O201),0) -> 27375 | Q201: =ROUND(D201*$Q$7,0) -> 41183
... 254 more rows
